Cogmind - Beta 17 @@@ ROGUE MODE // 2026.07.24 @ 17:49:12 Player: pinbox Result: Destroyed by H-77 Assassin with Coil Gun Performance ------------- Evolutions (6) 3000 Regions Visited (9) 1800 Robots Destroyed (113) 565 Value Destroyed (3732) 3732 Prototype IDs (8) 160 Alien Tech Used (0) 0 Bonus (0) 0 TOTAL SCORE: 9257 Bonus ------- None Cogmind --------- Core Integrity 0/1150 Matter 167/300 Energy 99/100 System Corruption 13% Temperature Cool (0) Movement Treading (160) Location -4/Factory Parts ------- > --- POWER (2) -------- (None) > --- PROPULSION (5) --- Improved Treads > --- UTILITY (8) ------ Advanced Heat Sink Advanced Signal Interpreter Advanced Targeting Computer Core Analyzer Improved Medium Armor Plating > --- WEAPON (4) ------- Autogun > --- INVENTORY (5) ---- Huge Storage Unit High-capacity Matter Pod (0) Advanced Reaction Control System Graphene Brace Peak State ------------ > --- POWER ------------ Light Nuclear Core Light Angular Momentum Engine > --- PROPULSION ------- Improved Medium Treads Armored Medium Treads Armored Medium Treads Armored Medium Treads Armored Medium Treads > --- UTILITY ---------- Large Storage Unit Structural Scanner Advanced Signal Interpreter Advanced Terrain Scanner Advanced Targeting Computer Core Analyzer Layered Heavy Armor Plating > --- WEAPON ----------- Compact Ion Cannon Compact Ion Cannon Compact Ion Cannon Compact Ion Cannon > --- INVENTORY -------- Improved Treads Medium Treads Huge Storage Unit Compact Battery High-capacity Matter Pod Advanced Sensor Array Advanced Recoil Stabilizer Advanced Recoil Stabilizer Advanced Reaction Control System Layered Medium Armor Plating Graphene Brace Compact Ion Cannon Compact Ion Cannon Heavy Rocket Launcher [Rating: 98] Favorites ----------- Power Light Angular Momentum Engine Engine Light Angular Momentum Engine Power Core Light Nuclear Core Propulsion Improved Treads Treads Improved Treads Leg Improved Carbon-fiber Leg Hover Unit Aerolev Unit Flight Unit Improved VTOL Module Utility Large Storage Unit Device Cooling System Storage Large Storage Unit Processor Advanced Targeting Computer Protection Hardened Medium Armor Plating Weapon Minigun Energy Gun Improved Medium Laser Energy Cannon Compact Ion Cannon Ballistic Gun Minigun Launcher Heavy Rocket Launcher Build | -11 -10 -10 -9 -8 -8 -7 -6 -5 -4 ------- Run | Yrd Mat Min Mat Mat Sto Fac Fac Fac Fac Slots Evolved 12 | . . . 2 2 . 2 2 2 2 Power 1 | . . . . . . . . 1 . Propulsion 3 | . . . 1 . . . 1 . 1 Utility 6 | . . . . 2 . 1 1 1 1 Weapon 2 | . . . 1 . . 1 . . . Parts Attached 91 | 7 3 . 16 8 6 10 12 17 12 Power 11 | 1 1 . 2 . 1 . 1 2 3 Engine 8 | 1 1 . 2 . . . 1 2 1 Core 3 | . . . . . 1 . . . 2 Reactor . | . . . . . . . . . . Propulsion 24 | 2 . . 3 1 3 6 1 6 2 Treads 19 | 2 . . 3 1 1 3 1 6 2 Leg 3 | . . . . . . 3 . . . Wheel . | . . . . . . . . . . Hover 1 | . . . . . 1 . . . . Flight 1 | . . . . . 1 . . . . Utility 28 | 2 . . 6 3 2 2 3 6 4 Device 12 | 1 . . 3 . 1 1 2 3 1 Storage 2 | 1 . . 1 . . . . . . Processor 5 | . . . . 1 . . 1 2 1 Hackware . | . . . . . . . . . . Protection 9 | . . . 2 2 1 1 . 1 2 Artifact . | . . . . . . . . . . Weapon 28 | 2 2 . 5 4 . 2 7 3 3 Energy Gun 5 | . . . 3 . . 2 . . . Energy Cannon 10 | . 2 . 2 . . . 3 2 1 Ballistic Gun 12 | 2 . . . 4 . . 4 . 2 Ballistic Cannon . | . . . . . . . . . . Launcher 1 | . . . . . . . . 1 . Special Weapon . | . . . . . . . . . . Impact Weapon . | . . . . . . . . . . Slashing Weapon . | . . . . . . . . . . Piercing Weapon . | . . . . . . . . . . Special Melee Weapon . | . . . . . . . . . . Unidentified Prototypes 8 | . . . 2 . 3 2 1 . . Parts Lost 41 | . 1 . 7 1 . 2 . 8 22 Power 9 | . 1 . 2 . . . . 1 5 Propulsion 11 | . . . 2 . . . . 2 7 Utility 13 | . . . 1 1 . 1 . 5 5 Weapon 8 | . . . 2 . . 1 . . 5 Highest Loss Streak 13 | . 1 . 6 1 . 1 . 6 13 To Critical Strikes . | . . . . . . . . . . Average Backups 11 | . 5 8 9 13 14 14 14 12 10 Power . | . . . . 1 1 1 . . . Propulsion 1 | . . . . 2 3 1 1 1 1 Utility 5 | . 1 3 5 6 5 6 6 6 6 Weapon 4 | . 3 4 3 4 4 5 5 3 2 Tool/Special . | . . . . . . . . . . Unused Backups 33 | . . 1 1 2 3 11 7 . 8 Power 2 | . . . . . 1 . 1 . . Propulsion 6 | . . . . 1 . 5 . . . Utility 12 | . . . . 1 1 1 2 . 7 Weapon 13 | . . 1 1 . 1 5 4 . 1 Tool/Special . | . . . . . . . . . . Average Slot Usage (%) 92 | . 100 100 81 98 99 98 99 93 68 Engine 5 | . 14 14 5 9 5 . 3 10 3 Core 2 | . . . . . 3 7 2 . 2 Treads 22 | . 28 28 23 27 26 16 25 22 16 Device 12 | . 14 14 7 15 9 14 17 15 6 Storage 7 | . 14 14 11 9 9 7 6 5 3 Processor 7 | . . . . 1 9 7 11 10 14 Protection 4 | . . . 3 8 9 7 3 3 5 Energy Gun 4 | . . . 19 20 . 5 3 . . Energy Cannon 8 | . 26 28 6 . . . 7 19 12 Ballistic Gun 11 | . 1 . 4 6 27 24 14 2 1 Peak Build Rating 98 | 7 7 7 19 27 34 44 61 85 98 Average Rating 38 | 5 6 7 13 22 28 39 53 68 65 On Entrance 28 | . 7 7 7 19 24 31 39 61 85 Avg Prop Armor Cover (%) 11 | . . . . . 13 . . 5 11 Naked Turns . | . . . . . . . . . . Heaviest Build 84 | 14 17 15 36 47 44 59 66 84 84 Greatest Support 138 | 40 40 40 63 63 65 69 92 108 138 Greatest Overweight (x) 24 | . . . 4 . 12 15 . 24 5 Average Overweight (x) . | . . . . . . . . . . Largest Inventory Capacity 15 | 8 8 8 15 15 15 15 15 15 15 Average Capacity 13 | 6 8 8 11 15 15 15 15 15 11 Most Carried 15 | 2 8 8 15 15 15 15 15 15 15 Average Carried 11 | . 5 7 9 13 14 14 14 12 10 Final Capacity 15 | 8 8 8 15 15 15 15 15 15 5 Final Carried 15 | 1 8 8 14 15 15 15 15 12 4 Class Distribution -------------------- 62% | Gunner 20% | Mutant 9% | Skirmisher 4% | Scavenger-Tank Dominant Class ---------------- Mutant | -10/Materials Mutant | -10/Mines Gunner | -9/Materials Scavenger-Tank | -8/Materials Gunner | -8/Storage Gunner | -7/Factory Gunner | -6/Factory Gunner | -5/Factory Gunner | -4/Factory Resources | -11 -10 -10 -9 -8 -8 -7 -6 -5 -4 ----------- Run | Yrd Mat Min Mat Mat Sto Fac Fac Fac Fac Matter Collected 2996 | 241 232 . 239 145 606 707 256 200 370 Remotely . | . . . . . . . . . . Salvage Created 4532 | 39 289 45 834 289 723 704 501 557 551 Parts 222 | 3 14 6 31 16 42 35 22 28 25 Haulers Intercepted 11 | . 1 . 3 1 4 1 1 . . Recyclers Shooed 6 | . . . 3 . . . 3 . . Parts Field Recycled . | . . . . . . . . . . Retrieved Matter . | . . . . . . . . . . Parts Self-Destructed . | . . . . . . . . . . Prevented . | . . . . . . . . . . Parts Restored . | . . . . . . . . . . Kills | -11 -10 -10 -9 -8 -8 -7 -6 -5 -4 ------- Run | Yrd Mat Min Mat Mat Sto Fac Fac Fac Fac Combat Hostiles Destroyed 86 | . 5 3 11 6 9 15 5 12 20 Guns 38 | . . . 5 6 9 15 2 1 . Cannons 33 | . 4 3 6 . . . 2 6 12 AOE 13 | . . . . . . . . 5 8 Classes Destroyed 14 | 1 4 1 3 . . 2 . 3 . Worker 4 | . 1 . 1 . 1 . 1 . . Builder 2 | . . . . . . . . 2 . Tunneler 2 | 2 . . . . . . . . . Hauler 11 | . 1 . 3 1 4 1 1 . . Recycler 3 | . . . 2 . . . 1 . . Mechanic 1 | . . . . . . . . 1 . Watcher 4 | . 1 . . 1 1 1 . . . Swarmer 30 | . . 3 . 3 . 6 . 5 13 Grunt 34 | . 5 . 9 . 5 5 3 3 4 Brawler 2 | . . . 1 . . . . 1 . Duelist 1 | . . . . . . . . 1 . Sentry 10 | . . . 1 3 4 . . 1 1 Hunter 4 | . . . . . . 3 . 1 . Programmer 5 | . . . . . . 1 2 . 2 Best Kill Streak 9 | 2 3 3 5 3 4 4 2 6 9 Combat Bots Only 9 | . 3 3 5 3 2 4 2 6 9 Max Kills in Single Turn 2 | 1 1 1 1 1 1 2 1 2 2 Gunslinging 1 | . . . . . . 1 . . . Exploded 2 | . . . . . . . . 2 2 Melee . | . . . . . . . . . . Uniques/NPCs Destroyed . | . . . . . . . . . . Combat | -11 -10 -10 -9 -8 -8 -7 -6 -5 -4 -------- Run | Yrd Mat Min Mat Mat Sto Fac Fac Fac Fac Hostile Shots Fired 776 | . 19 9 87 39 42 61 24 55 440 Missed 205 | . 5 3 13 12 10 17 9 16 120 Hits 571 | . 14 6 74 27 32 44 15 39 320 Melee 11 | . . . 2 . . . . 9 . Projectile 560 | . 14 6 72 27 32 44 15 30 320 AOE 1 | . . . . 1 . . . . . Critical Strikes 22 | . . . . 3 . 3 2 4 10 Damage Taken 9962 | . 204 46 962 429 510 726 267 878 5940 Core 1685 | . 35 6 252 81 80 45 . 36 1150 Absorbed by Shields . | . . . . . . . . . . Ignored by Resistances 440 | . . . . . . 37 . 56 347 Core Remaining (%) 82 | 100 . 83 37 . 70 93 100 96 . Volleys Fired 275 | 3 17 5 49 20 43 34 18 23 63 Largest 4 | 2 2 2 3 3 3 4 4 4 3 Hottest 360 | 40 120 120 168 168 75 136 240 360 261 Shots Fired 713 | 6 34 10 105 58 129 137 72 69 93 Gun 469 | 6 . . 61 58 129 137 59 9 10 Cannon 230 | . 34 10 44 . . . 13 57 72 Launcher 14 | . . . . . . . . 3 11 Special . | . . . . . . . . . . Kinetic 358 | 6 . . 42 10 129 109 43 9 10 Thermal 336 | . 34 10 63 48 . 28 29 57 67 Explosive 14 | . . . . . . . . 3 11 Electromagnetic 5 | . . . . . . . . . 5 Robot Hit Streak 17 | 4 8 3 10 8 17 15 13 8 10 Robot Miss Streak 5 | . 2 1 3 2 3 4 2 3 5 Penetration Max 1 | . . . . . . . 1 . . Secondary Targets 6 | . . . . . 1 5 . . . Max Gunslinging Chain 1 | . . . . . 1 1 . . . Shots Hit Robots 451 | 4 26 6 70 39 79 84 49 39 55 Core Hits 187 | 2 7 3 24 12 27 34 16 25 37 Critical Kills 2 | . . . . . . 1 1 . . Critical Parts Destroyed 1 | . . . 1 . . . . . . Critical Strikes 4 | . . . 1 1 . 1 1 . . Burn 1 | . . . . 1 . . . . . Meltdown 1 | . . . . . . . 1 . . Destroy 2 | . . . 1 . . 1 . . . Melee Attacks . | . . . . . . . . . . Impact . | . . . . . . . . . . Slashing . | . . . . . . . . . . Piercing . | . . . . . . . . . . Sneak Attacks . | . . . . . . . . . . Combat Hostiles . | . . . . . . . . . . Follow-up Attacks . | . . . . . . . . . . Damage Inflicted 10904 | 45 470 106 1198 706 1403 1463 1165 1541 2807 Guns 5246 | 45 . . 592 706 1383 1463 847 139 71 Cannons 3571 | . 460 106 526 . . . 300 934 1245 Explosions 1926 | . . . . . . . . 441 1485 Melee . | . . . . . . . . . . Ramming 161 | . 10 . 80 . 20 . 18 27 6 Kinetic 3831 | 45 . . 333 140 1383 1158 562 139 71 Thermal 4959 | . 460 106 785 566 . 305 585 934 1218 Explosive 1926 | . . . . . . . . 441 1485 Electromagnetic 27 | . . . . . . . . . 27 Impact . | . . . . . . . . . . Slashing . | . . . . . . . . . . Piercing . | . . . . . . . . . . Highest Corruption 13 | . 2 2 . . . 1 3 7 13 Average Corruption 4 | . 2 2 . . . 1 2 6 10 Corruption Purged . | . . . . . . . . . . Corruption Blocked . | . . . . . . . . . . Effects 50 | . 5 3 . . . 7 9 9 17 Message Errors 11 | . . 1 . . . 2 2 3 3 Matter Fused 12 | . 2 1 . . . 1 2 1 5 Heat Flow Errors 5 | . . . . . . . 3 1 1 Energy Discharges 5 | . 1 . . . . 1 1 1 1 Data Loss (minor) 7 | . 1 1 . . . 1 1 2 1 Data Loss (major) 6 | . . . . . . 1 . 1 4 Misfires 1 | . . . . . . 1 . . . Alerts 2 | . 1 . . . . . . . 1 Weapon Failures 1 | . . . . . . . . . 1 Overload Shots . | . . . . . . . . . . Overflow Damage 148 | . . 15 . . . . 12 91 30 Projectiles 41 | . . 15 . . . . . 12 14 Explosions 95 | . . . . . . . . 79 16 Melee 12 | . . . . . . . 12 . . Knockbacks 2 | . . . 1 . . . 1 . . Impact 2 | . . . 1 . . . 1 . . Kinetic . | . . . . . . . . . . Secondary . | . . . . . . . . . . Self-Inflicted Damage 24 | . . . . . . . . . 24 Shots 1 | . . . . . . . . . 1 Rammed 20 | . 1 . 12 . 1 . 3 2 1 Targets Rammed 25 | . 2 . 14 . 1 . 3 4 1 Kicked . | . . . . . . . . . . Crushed 5 | . 1 . 2 . . . . 2 . Highest Temperature 674 | . 423 300 486 156 3 166 354 674 549 Average Temperature 157 | . 135 154 192 60 3 48 116 177 204 Received Heat Transfer 1972 | . 93 . 474 81 234 99 126 234 631 Effects 31 | . 2 . 9 . . . . 7 13 Shutdowns 10 | . . . 4 . . . . 2 4 Energy Bleed 5 | . 1 . 3 . . . . . 1 Interference 9 | . . . . . . . . 3 6 Short Circuit 5 | . . . 2 . . . . 1 2 Damage (minor) 2 | . 1 . . . . . . 1 . Siege Activations . | . . . . . . . . . . Martial Activations . | . . . . . . . . . . Shielding Activations . | . . . . . . . . . . Robots Disrupted . | . . . . . . . . . . Combat Hostiles . | . . . . . . . . . . Robots Corrupted . | . . . . . . . . . . Combat Hostiles . | . . . . . . . . . . Parts Fried . | . . . . . . . . . . Impact Corruptions 1 | . . . . . . . 1 . . Robots Melted 2 | . 1 . . . . . 1 . . Combat Hostiles 2 | . 1 . . . . . 1 . . Parts Melted 11 | . 1 1 . 3 . . 3 3 . Heat Transferred 8288 | . 962 222 1665 1258 . 555 888 1147 1591 Parts Sabotaged . | . . . . . . . . . . Parts Stolen . | . . . . . . . . . . Parts Stripped . | . . . . . . . . . . Power Chain Reactions . | . . . . . . . . . . Alert | -11 -10 -10 -9 -8 -8 -7 -6 -5 -4 ------- Run | Yrd Mat Min Mat Mat Sto Fac Fac Fac Fac Maximum Alert Level 1 | . . . . . . . . . 1 Low Security (%) 98 | 100 100 100 100 100 100 100 100 100 87 Level 1 1 | . . . . . . . . . 12 Level 2 . | . . . . . . . . . . Level 3 . | . . . . . . . . . . Level 4 . | . . . . . . . . . . Level 5 . | . . . . . . . . . . High Security . | . . . . . . . . . . Max Security . | . . . . . . . . . . Peak Influence 276 | 10 86 104 135 81 120 100 64 183 276 Initial 65 | . . 4 20 . 16 21 35 . 65 Average 51 | 1 26 77 56 37 45 42 12 57 125 Influence Increases 2755 | 10 207 100 326 176 342 414 189 368 623 Destroy 0b10 Robot/C 1720 | . 100 60 220 120 180 300 100 240 400 Destroy 0b10 Robot/NC 135 | 10 15 . 30 10 30 10 15 15 . Destroy Leader 380 | . 24 10 46 44 60 74 32 40 50 Successful Hack 78 | . 7 . 14 . 7 14 24 . 12 Disable Machine 105 | . . 30 . . 30 15 . 15 15 Destroy Structure 157 | . 1 . 1 2 5 1 3 58 86 Partial Spotted 15 | . . . . . . . 15 . . Lose Combat Pursuer 165 | . 60 . 15 . 30 . . . 60 Influence Decreases 2673 | 10 194 59 380 137 333 389 262 233 676 Entered New Map 201 | . . 9 34 . 23 27 38 . 70 Time Decay 2089 | 10 184 50 276 127 310 342 224 180 386 Lost Part 383 | . 10 . 70 10 . 20 . 53 220 Squads Dispatched 21 | . 3 . . 1 . 5 2 6 4 Investigation 5 | . 3 . . . . 1 . 1 . Extermination 4 | . . . . . . 2 1 . 1 Reinforcement 9 | . . . . 1 . 2 1 2 3 Assault . | . . . . . . . . . . Garrison 3 | . . . . . . . . 3 . Intercept . | . . . . . . . . . . Searches Triggered . | . . . . . . . . . . Construction Impeded 1 | . . . . . . . . 1 . Haulers Reinforced 1 | . . . . . . . 1 . . Active Scanning Responses . | . . . . . . . . . . Cargo Convoy Interrupts 1 | . . . . . . 1 . . . Stealth | -11 -10 -10 -9 -8 -8 -7 -6 -5 -4 --------- Run | Yrd Mat Min Mat Mat Sto Fac Fac Fac Fac Distress Signals 7 | . 1 . 1 1 2 2 . . . Communications Jammed . | . . . . . . . . . . Distress Signals . | . . . . . . . . . . Times Spotted 119 | . 8 2 15 11 15 19 6 13 30 Peak Tracking Total 8 | . 4 1 8 4 3 4 2 5 7 Tactical Retreats 6 | . 2 . 1 . 1 . . . 2 Traps | -11 -10 -10 -9 -8 -8 -7 -6 -5 -4 ------- Run | Yrd Mat Min Mat Mat Sto Fac Fac Fac Fac Traps Triggered 13 | . 4 . . . . 2 2 2 3 Indirectly . | . . . . . . . . . . Trap Hack Attempts . | . . . . . . . . . . Triggered . | . . . . . . . . . . Disarmed . | . . . . . . . . . . Reprogrammed . | . . . . . . . . . . Reused . | . . . . . . . . . . Traps Extracted . | . . . . . . . . . . Installed . | . . . . . . . . . . Triggered . | . . . . . . . . . . Machines | -11 -10 -10 -9 -8 -8 -7 -6 -5 -4 ---------- Run | Yrd Mat Min Mat Mat Sto Fac Fac Fac Fac Machines Disabled 7 | . . 2 . . 2 1 . 1 1 Max in Single Turn 1 | . . 1 . . 1 1 . 1 1 Garrison Access 1 | . . . . . . 1 . . . Machines Repaired . | . . . . . . . . . . Machines Dismantled . | . . . . . . . . . . Machines Sabotaged . | . . . . . . . . . . Overloaded Fab Kills . | . . . . . . . . . . Hacking | -11 -10 -10 -9 -8 -8 -7 -6 -5 -4 --------- Run | Yrd Mat Min Mat Mat Sto Fac Fac Fac Fac Machines Accessed 25 | . 5 . 3 1 4 4 4 2 2 Terminals 13 | . 5 . 1 . 3 2 . 1 1 Fabricators 1 | . . . . . . . 1 . . Repair Stations 3 | . . . . . 1 . 1 . 1 Recycling Units 3 | . . . 1 . . 1 1 . . Scanalyzers 3 | . . . 1 1 . . 1 . . Garrison Access 2 | . . . . . . 1 . 1 . Total Hacks 58 | . 10 . 9 4 8 6 15 2 4 Successful 24 | . 1 . 7 2 4 3 6 . 1 Failed 33 | . 8 . 2 2 4 3 9 2 3 Catastrophic 8 | . 3 . 1 . 1 . 1 . 2 Database Lockouts 1 | . 1 . . . . . . . . Manual 26 | . 10 . 5 . . 3 5 1 2 Terminals 26 | . 10 . 4 . 6 3 . 1 2 Fabricators 2 | . . . . . . . 2 . . Repair Stations 9 | . . . . . 2 . 5 . 2 Recycling Units 6 | . . . 1 . . 2 3 . . Scanalyzers 13 | . . . 4 4 . . 5 . . Garrison Access 2 | . . . . . . 1 . 1 . Terminal Hacks 7 | . 1 . 3 . 3 . . . . Part Schematic 1 | . 1 . . . . . . . . Robot Analysis 3 | . . . 3 . . . . . . Open Door 3 | . . . . . 3 . . . . Fabricator Hacks . | . . . . . . . . . . Repair Station Hacks 3 | . . . . . 1 . 1 . 1 Scan Component 3 | . . . . . 1 . 1 . 1 Recycling Unit Hacks 2 | . . . 1 . . 1 . . . Retrieve Components 2 | . . . 1 . . 1 . . . Scanalyzer 9 | . . . 3 2 . . 4 . . Insert Component 2 | . . . 1 1 . . . . . Analyze 1 | . . . . 1 . . . . . Retrieve Study 6 | . . . 2 . . . 4 . . Garrison Access Hacks 1 | . . . . . . 1 . . . Seal Access 1 | . . . . . . 1 . . . Unauthorized Hacks 2 | . . . . . . 1 1 . . Terminals 1 | . . . . . . 1 . . . Botnet 1 | . . . . . . 1 . . . Fabricators . | . . . . . . . . . . Repair Stations . | . . . . . . . . . . Recycling Units 1 | . . . . . . . 1 . . Recyclers 1 | . . . . . . . 1 . . Scanalyzers . | . . . . . . . . . . Garrison Access . | . . . . . . . . . . Data Cores Recovered . | . . . . . . . . . . Used . | . . . . . . . . . . Hacking Detections 22 | . 5 . 2 1 3 3 4 2 2 Full Trace Events . | . . . . . . . . . . Feedback Events . | . . . . . . . . . . Feedback Blocked . | . . . . . . . . . . Robot Schematics Acquired . | . . . . . . . . . . Robots Built . | . . . . . . . . . . Authchips . | . . . . . . . . . . Time . | . . . . . . . . . . Total Robot Build Rating . | . . . . . . . . . . Part Schematics Acquired 2 | . 1 . . 1 . . . . . Parts Built . | . . . . . . . . . . Authchips . | . . . . . . . . . . Time . | . . . . . . . . . . Total Part Build Rating . | . . . . . . . . . . Part Studies Acquired 6 | . . . 2 . . . 4 . . Parts Repaired . | . . . . . . . . . . Time . | . . . . . . . . . . Parts Recycled . | . . . . . . . . . . Recycled Matter . | . . . . . . . . . . Retrieved Matter . | . . . . . . . . . . Retrieved Components 15 | . . . 9 . . 6 . . . Parts Scanalyzed 1 | . . . . 1 . . . . . Part Schematics Acquired 1 | . . . . 1 . . . . . Parts Damaged . | . . . . . . . . . . Bothacking | -11 -10 -10 -9 -8 -8 -7 -6 -5 -4 ------------ Run | Yrd Mat Min Mat Mat Sto Fac Fac Fac Fac Used RIF Installer . | . . . . . . . . . . Robots Hacked . | . . . . . . . . . . Non-combat . | . . . . . . . . . . Combat . | . . . . . . . . . . Robot Hacks Applied . | . . . . . . . . . . Relay Couplers Released . | . . . . . . . . . . Fabnet Peak Effective % . | . . . . . . . . . . Robots Rewired . | . . . . . . . . . . Allies Hacked . | . . . . . . . . . . Hacks Repelled . | . . . . . . . . . . Allies | -11 -10 -10 -9 -8 -8 -7 -6 -5 -4 -------- Run | Yrd Mat Min Mat Mat Sto Fac Fac Fac Fac Total Allies . | . . . . . . . . . . Largest Group . | . . . . . . . . . . Highest-Rated Group . | . . . . . . . . . . Highest-Rated Ally . | . . . . . . . . . . Total Orders . | . . . . . . . . . . Ally Attacks . | . . . . . . . . . . Total Damage . | . . . . . . . . . . Kills . | . . . . . . . . . . Allies Corrupted . | . . . . . . . . . . Allies Melted . | . . . . . . . . . . Intel | -11 -10 -10 -9 -8 -8 -7 -6 -5 -4 ------- Run | Yrd Mat Min Mat Mat Sto Fac Fac Fac Fac Active Infowar (turns) 2582 | 8 631 103 65 262 . . 593 503 417 Sensors 723 | . . . . . . . 458 265 . Terrain 788 | . . . . . . . 135 238 415 Structural 448 | . . . . . . . . 31 417 Seismic 1069 | 8 631 103 65 262 . . . . . Robot Analysis Total 3 | . . . 3 . . . . . . Derelict Logs Recovered . | . . . . . . . . . . Drone Launches . | . . . . . . . . . . Drone Recoveries . | . . . . . . . . . . Exploration | -11 -10 -10 -9 -8 -8 -7 -6 -5 -4 ------------- Run | Yrd Mat Min Mat Mat Sto Fac Fac Fac Fac Turns Passed 6087 | 80 631 103 692 352 834 1008 976 505 906 Spaces Moved 3022 | 40 323 54 298 168 376 572 528 225 438 Core 142 | 3 . . 1 . 1 1 . 1 135 Treads 2690 | 37 323 54 297 168 375 381 528 224 303 Legs 190 | . . . . . . 190 . . . Wheels . | . . . . . . . . . . Hover . | . . . . . . . . . . Flight . | . . . . . . . . . . Fastest Speed 50 | 50 160 160 160 160 158 120 160 160 50 Average Speed 158 | 151 160 160 160 160 172 149 160 167 145 Slowest Speed 1250 | 160 160 160 250 163 650 800 160 1250 300 Overloaded Moves . | . . . . . . . . . . Propulsion Burnouts . | . . . . . . . . . . Robots Hopped . | . . . . . . . . . . Potential Cave-ins 3 | . . . . . . . . . 3 Cave-ins Triggered 1 | . . . . . . . . . 1 Exploration Rate (%) 27 | 3 77 15 26 20 62 24 22 9 15 Regions Visited 9 Branch Regions 2 Pre-discovered Areas 1 | . . . . . 1 . . . . Known Exits Taken 1 | . . . . . . . 1 . . Unknown Exits Taken 8 | 1 1 1 1 1 1 1 . 1 . Scrap Searched 1 | . . 1 . . . . . . . Spaces Dug 1 | . . . . . . . . 1 . Terrain Destroyed 113 | . . . . . . . 2 26 85 Melee . | . . . . . . . . . . Projectile 23 | . . . . . . . 2 11 10 AOE 90 | . . . . . . . . 15 75 Terrain Rammed . | . . . . . . . . . . Walls Destroyed . | . . . . . . . . . . Machines Disabled . | . . . . . . . . . . Actions | -11 -10 -10 -9 -8 -8 -7 -6 -5 -4 --------- Run | Yrd Mat Min Mat Mat Sto Fac Fac Fac Fac Total 3839 | 51 402 62 406 211 494 668 622 302 621 Wait 228 | . 50 . 7 . 47 7 27 19 71 Move 3012 | 39 322 53 297 167 375 571 527 224 437 Hop . | . . . . . . . . . . Pick Up 71 | 2 6 2 11 6 5 14 11 3 11 Fast Attach 65 | 6 2 . 10 3 6 11 7 7 13 Attach 42 | 1 1 . 5 4 1 5 7 11 7 Detach 28 | . 2 . 3 . . 5 6 7 5 Swap 14 | . . . 3 3 3 . . 2 3 Drop 78 | . . 2 7 8 13 21 16 2 9 Fire 275 | 3 17 5 49 20 43 34 18 23 63 Melee . | . . . . . . . . . . Ram . | . . . . . . . . . . Kick . | . . . . . . . . . . Crush 25 | . 2 . 14 . 1 . 3 4 1 Escape Stasis 1 | . . . . . . . . . 1 Rewire . | . . . . . . . . . . Trap . | . . . . . . . . . . Miscellaneous . | . . . . . . . . . . Route ------- -11/Scrapyard -10/Materials (discovered 5 exits: *Mat x2 / [*Min x2] / [*Sub]) -10/Mines -9/Materials -8/Materials (discovered 2 exits: *Fac / *Sto) -8/Storage -7/Factory -6/Factory -5/Factory -4/Factory History --------- Turn | Location | Event 30 | -11/Scrapyard | Discovered new exit (range 16) 81 | -11/Scrapyard | Entered Materials 82 | -10/Materials | Met a group of wandering Federalists 210 | -10/Materials | Discovered new exit (range 16) 317 | -10/Materials | Build established: Mutant 383 | -10/Materials | Central database locked down 441 | -10/Materials | Discovered new exit (range 6) 488 | -10/Materials | Discovered new exit (range 10) 565 | -10/Materials | Discovered new exit (range 9) 701 | -10/Materials | Discovered new exit (range 7) 712 | -10/Materials | Entered Mines 787 | -10/Mines | Found a hidden stash of uninstalled traps 799 | -10/Mines | Discovered new exit (range 10) 806 | -10/Mines | Received a Rocket Launcher from a helpful Derelict 815 | -10/Mines | Entered Materials 815 | -9/Materials | Evolved 2 slots: Propulsion x1, Weapon x1 951 | -9/Materials | Core integrity fell below 50% 997 | -9/Materials | Lost 6 parts (2p2n1u1w) 1426 | -9/Materials | Build established: Gunner 1431 | -9/Materials | Discovered new exit (range 16) 1507 | -9/Materials | Entered another Materials area 1507 | -8/Materials | Evolved 2 slots: Utility x2 1817 | -8/Materials | Discovered new exit (range 15) 1859 | -8/Materials | Discovered new exit (range 15) 1859 | -8/Materials | Entered Storage 2556 | -8/Storage | Learned location of Armory (-4) 2673 | -8/Storage | Discovered new exit (range 14) 2693 | -8/Storage | Entered Factory 2693 | -7/Factory | Evolved 2 slots: Utility x1, Weapon x1 3576 | -7/Factory | Cargo convoy interrupted 3605 | -7/Factory | Discovered new exit (range 11) 3701 | -7/Factory | Entered another Factory area 3701 | -6/Factory | Evolved 2 slots: Propulsion x1, Utility x1 4514 | -6/Factory | Build established: Skirmisher 4617 | -6/Factory | Discovered new exit (range 15) 4666 | -6/Factory | Identified exit to Factory 4677 | -6/Factory | Entered another Factory area 4677 | -5/Factory | Evolved 2 slots: Power x1, Utility x1 4903 | -5/Factory | Garrison activated, responded to threat 4948 | -5/Factory | Lost 6 parts (1p2n3u) 5133 | -5/Factory | Discovered new exit (range 12) 5137 | -5/Factory | Build established: Gunner 5182 | -5/Factory | Entered another Factory area 5182 | -4/Factory | Evolved 2 slots: Propulsion x1, Utility x1 5570 | -4/Factory | Destroyed 9 combat bots 5573 | -4/Factory | Spotted B-86 Titan 5597 | -4/Factory | Crushed by falling debris 5628 | -4/Factory | Lost 4 parts (2p1u1w) 5741 | -4/Factory | System corruption reached 10% 5816 | -4/Factory | Core integrity fell below 50% 5818 | -4/Factory | Lost 13 parts (7n4u2w) 5879 | -4/Factory | Core integrity fell below 20% 6088 | -4/Factory | Destroyed by H-77 Assassin with Coil Gun Last Messages --------------- 06002_ W5Y%P#=C1O/Z =MGR28HDFOEPMD#:TSBI 06007_ Triggered Gamma Bomb Trap. 06007_ A bubble of electromagnetic force engulfs the area. 06007_ Door malfunctions. 06038_ System corrupted: Heat flow error (+236). 06064_ PFM=C3 A|46YNSJXA#:&RHU,DSF 06074_ Slug penetrates Wall. 06077_ Penetrated by Slug. 06078_ Slug penetrates Wall. 06078_ Penetrated by Slug. 06080_ Slug penetrates Wall. 06081_ Com. Ion Cannon destroyed. 06081_ Slug penetrates Wall. 06084_ Penetrated by Slug. 06084_ Slug penetrates Wall. 06085_ Penetrated by Slug. 06085_ Neutrino Core destroyed. 06085_ Autogun destroyed. 06087_ Penetrated by Slug. Map ----- +----------------------------------------------------+ | ??# #???# !!! """ ######## ##????? | | ### ###?# !!! "" ! ##?#??? | | # #?# ###########????? | | = ### ##### ### ????? | | !%* ##### ####### ####?????????????# | | %= ######### #??#### ##### ???????"???? | | # #??????# #??#### ##### ???? ??????# | | #######???#??????####??## # ???????????? | | ??????????? ???????????## # ???????????? | | ???????????????????????## + ???"???????? | | ???????????????????????## # ???????"???? | | ?????? ??????????????## # ????????? ?? | | ?????? "?"???????????#####+##+# ?????????? ? | | ?????? "???? ????????# # ???????????? | | ?????# ?? #?????### """" # ???????????? | | ?????# """ ?? ?? + """" ##???????????? | | ?????# """ #?????## """" ###??????????? | | ?????# """ #?????##= """" ##???????????? | | ?????# #?????## """" ###??????????? | | ?????# """ #?????## ???? ##??#????????? | | ###### """ #?????## ???? ##???????????? | | # """ #?????## !???????????????????? | | """ # #??###########???????????????? | | """ # """ #??# #???????????????? | | " # """ #### #???????????????? | | "F" + """ + @ #??????????###### | | """ # # #??????????# # | | # ####;/##/############# # | | # h h + # | | # ^ # "" # | | ###+## "T" ^ # "" # | | ^o + "T # | | #################### "" # | | ################ T####??????????????????? "" # | | ????# #????????####?????????????????????? # | | ?????##??????????????????????????????????##??# | | | | | | | | | | | | | | | | | | | | | | | | | | | | | +----------------------------------------------------+ Best States ------------- Heat Dissipation 84 Energy Generation 33 Energy Capacity 315 Matter Stores 300 Matter Capacity 300 Sight Range 16 Robot Scan Range 16 Terrain Scan Range 20 Terrain Scan Density 10 Armor Coverage 600 Resistance: KI 30 Evasion (%) 55 Targeting Accuracy 8 Core Analysis 6 Recoil Reduction 8 Particle Charging 15 Item Schematics ----------------- Huge Storage Unit | -10/Materials | Hacked Lgt. Armor Plating | -8/Materials | Scanalyzed Robot Schematics ------------------ None Fabricated ------------ Nothing Repaired ---------- Nothing Studied --------- Rocket Launcher | -9/Materials | Hacked Lgt. EM Pulse Cannon | -9/Materials | Hacked Coil Gun | -6/Factory | Hacked Lgt. Angular Momentum Engine | -6/Factory | Hacked Imp. Medium Treads | -6/Factory | Hacked Hvy. Rocket Launcher | -6/Factory | Hacked Alien Tech Used ----------------- None Achievements -------------- None Challenges ------------ None Game ------ Seed TargetingMiningArchive Manual? 0 Play Time 00:59:44 Cumulative 90.5 hours Start 2026.07.24 @ 16:49:54 End 2026.07.24 @ 17:49:12 Sessions 1 Manual Loads 0 Difficulty Rogue Special Mode None Game No. 92 Rogue 92 Adventurer 0 Explorer 0 Win Type - Total 3 Types 2/0/0/0/0/0/0/0/0/1 Lore% 58 Gallery% 50 Achievement% 44 Wizard Run 0 Options --------- Layout 1 ASCII 0 Keyboard 1 Movement Numpad Keybinds 1 Fullscreen 2 Font 24/Smallcaps Map View 50x40 Zoom Use 0% Tactical HUD 1 Map Filters NONE Filters NONE Steam 1 RUN: 61bd88f1-a40a-4988-9b6b-9939f90cd912